bitfinex-derivatives/quotes_BTCF0:USTF0_20210406
["timestamp","ask_amount","ask_price","bid_price","bid_amount"]
[1617695981915,0.14053102,58509.0,58495.0,0.37725655]
[1617695981916,0.34820686,58504.0,58495.0,0.37725655]
[1617695982318,0.34831678,58507.0,58495.0,0.37725655]
[1617695982716,0.34831678,58507.0,58506.0,0.10725655]
[1617695982917,0.3483314,58508.0,58506.0,0.22183655]
[1617695983325,0.48897616,58509.0,58506.0,0.22183655]
[1617695983536,0.48897616,58509.0,58508.0,3.6663]
[1617695983719,0.34738641,58519.0,58508.0,3.6663]
[1617695984321,0.4936,58520.0,58508.0,3.6663]
[1617695984530,0.4936,58520.0,58509.0,0.27]
[1617695984743,0.4936,58520.0,58516.0,0.10725655]
[1617695985727,0.4936,58520.0,58517.0,0.27]
[1617695986322,0.4886,58520.0,58517.0,0.27]
[1617695986522,0.4861,58524.0,58517.0,0.27]
[1617695986724,0.4861,58524.0,58523.0,0.10725655]
[1617695986975,0.4861,58524.0,58523.0,0.25007655]
[1617695987537,0.4861,58524.0,58523.0,0.52007655]
[1617695988171,0.4643,58524.0,58523.0,0.52007655]
[1617695988603,0.4617,58524.0,58523.0,0.72007655]
[1617695988824,0.4407,58524.0,58523.0,0.72007655]
[1617695989055,0.3471161,58535.0,58523.0,0.72007655]
[1617695989225,0.34751732,58542.0,58534.0,3.2098]
[1617695989743,0.45503751,58546.0,58536.0,0.2]
[1617695989942,0.34778096,58546.0,58536.0,0.2]
[1617695990334,0.0002,58547.0,58536.0,0.2]
[1617695990335,0.0002,58547.0,58537.0,0.27]
[1617695990526,0.0002,58547.0,58538.0,0.2]
[1617695990826,0.34827171,58554.0,58546.0,0.10725655]
[1617695991239,0.34811805,58557.0,58547.0,0.27]
[1617695991525,0.34834003,58560.0,58547.0,0.39831]
[1617695991725,0.0515,58559.0,58547.0,0.39831]
[1617695992183,0.34834003,58560.0,58547.0,0.39831]
[1617695992426,0.42572743,58565.0,58547.0,0.39831]
[1617695992427,0.34840892,58561.0,58547.0,0.39831]
[1617695992827,0.10725655,58566.0,58560.0,0.10725655]
[1617695993026,0.10725655,58566.0,58560.0,0.24523655]
[1617695993328,0.10725655,58566.0,58561.0,0.27]
[1617695994428,0.10725655,58566.0,58532.0,0.3584221]
[1617695994791,0.13508,58571.0,58554.0,0.10725655]
[1617695994956,0.42616947,58574.0,58554.0,0.10725655]
[1617695995165,0.14501,58583.0,58554.0,0.10725655]
[1617695995871,0.1281,58590.0,58555.0,0.27]
[1617695996836,0.1281,58590.0,58571.0,0.10725655]
[1617695997445,0.3281,58590.0,58571.0,0.10725655]
[1617695998540,0.1281,58590.0,58571.0,0.10725655]
[1617695998934,0.10725655,58572.0,58571.0,0.10725655]
[1617696001637,0.10725655,58572.0,58528.0,0.35577594]
[1617696001938,0.10725655,58572.0,58526.0,0.35578329]
[1617696002137,0.4946,58571.0,58524.0,0.2]
[1617696004140,6.0,58525.0,58521.0,0.5555719]
[1617696004339,0.469,58571.0,58521.0,0.5555719]
[1617696004743,0.469,58571.0,58522.0,0.35555186]
[1617696004943,0.469,58571.0,58557.0,0.10725655]
[1617696004944,0.2,58570.0,58557.0,0.10725655]
[1617696007045,0.10725655,58558.0,58515.0,0.354784]
[1617696008547,0.10725655,58558.0,58516.0,0.35477072]
[1617696008949,0.4806,58569.0,58556.0,0.10725655]
[1617696010548,0.4806,58569.0,58540.0,0.0514]
[1617696010748,0.4806,58569.0,58525.0,0.15371]
[1617696011248,0.4806,58569.0,58554.0,0.10725655]
[1617696013151,0.10725655,58555.0,58554.0,0.10725655]
[1617696013352,0.15405655,58555.0,58554.0,0.10725655]
[1617696025070,0.10325655,58555.0,58554.0,0.10725655]
[1617696029773,0.10325655,58555.0,58525.0,0.15371]
[1617696029774,0.10325655,58555.0,58525.0,0.29817895]
[1617696030273,0.10325655,58555.0,58523.0,0.29818637]
[1617696030673,0.10325655,58555.0,58501.0,0.55661456]
[1617696030674,0.10325655,58555.0,58522.0,0.29818674]
[1617696031173,0.10325655,58555.0,58519.0,0.35782409]
[1617696031174,0.0513,58554.0,58521.0,0.29818822]
[1617696031373,0.10181,58559.0,58550.0,0.10725655]
[1617696033277,0.10725655,58551.0,58550.0,0.10725655]
[1617696033589,0.15815655,58551.0,58550.0,0.10725655]
[1617696033792,0.40086072,58551.0,58550.0,0.10725655]
[1617696036081,0.75368697,58551.0,58550.0,0.10725655]
[1617696037181,0.91875947,58551.0,58527.0,0.29970782]
[1617696037382,0.81150292,58551.0,58540.0,0.10725655]
[1617696037584,0.64643042,58551.0,58540.0,0.10725655]
[1617696037984,0.48178482,58554.0,58540.0,0.10725655]
[1617696037985,0.29407205,58545.0,58540.0,0.10725655]
[1617696038183,0.43138205,58545.0,58540.0,0.10725655]
[1617696038383,0.29400716,58544.0,58540.0,0.10725655]
[1617696038783,0.13731,58545.0,58540.0,0.10725655]
[1617696038784,0.29401736,58543.0,58540.0,0.10725655]
[1617696039481,0.10725655,58541.0,58540.0,0.10725655]
[1617696040983,0.10725655,58541.0,58522.0,0.29972767]
[1617696041396,0.10725655,58541.0,58519.0,0.35967321]
[1617696041397,0.29439232,58539.0,58526.0,0.10725655]
[1617696042284,0.29447212,58538.0,58526.0,0.10725655]
[1617696043116,0.29447262,58537.0,58526.0,0.10725655]
[1617696043327,0.10725655,58527.0,58526.0,0.10725655]
[1617696044086,1.38991501,58527.0,58526.0,0.77242144]
[1617696044412,1.19665808,58527.0,58526.0,0.77242144]
[1617696044989,1.39011623,58527.0,58526.0,0.83297474]
[1617696046888,1.50079623,58527.0,58526.0,0.83297474]
[1617696047089,1.06505542,58527.0,58526.0,0.10725655]
[1617696047288,1.06505542,58527.0,58526.0,0.09785655]
[1617696047508,1.06505542,58527.0,58520.0,0.30154953]
[1617696047509,1.50361096,58527.0,58520.0,0.30154953]
[1617696047990,1.50361096,58527.0,58517.0,0.36185943]
[1617696047991,0.6586879,58521.0,58518.0,0.30155122]
[1617696048389,1.09769594,58521.0,58517.0,0.30156678]
[1617696048689,0.68987899,58526.0,58514.0,0.36188014]
[1617696048690,1.09793621,58519.0,58514.0,0.30159553]
[1617696049100,1.09793621,58519.0,58492.0,0.56297833]
[1617696049102,0.0508,58526.0,58512.0,0.30160165]
[1617696049103,0.65848365,58515.0,58512.0,0.30160165]
[1617696049492,0.43895585,58516.0,58512.0,0.30160165]
[1617696049493,0.7657343,58513.0,58512.0,0.30160165]
[1617696049890,0.95920447,58513.0,58512.0,0.30160165]
[1617696050790,0.40657369,58513.0,58512.0,0.66352123]
[1617696051089,0.29931714,58513.0,58512.0,0.66352123]
[1617696054590,0.66034615,58513.0,58512.0,0.66352123]
[1617696054990,0.30089095,58514.0,58512.0,0.66352123]
[1617696055389,0.36104909,58516.0,58513.0,0.66315064]
[1617696055805,0.5998295,58516.0,58515.0,0.30143333]
[1617696056389,0.90097532,58516.0,58515.0,0.30143333]
[1617696056790,0.66219491,58516.0,58515.0,0.30143333]
[1617696057190,0.90109416,58516.0,58515.0,0.30143333]
[1617696057992,0.30114582,58516.0,58514.0,0.30102293]
[1617696058493,0.01011475,58515.0,58514.0,0.30102293]
[1617696058891,0.01011427,58516.0,58514.0,0.30102293]
[1617696059495,0.01011427,58516.0,58515.0,0.3010234]
[1617696059895,0.01011516,58515.0,58514.0,0.30102553]
[1617696060196,0.01011516,58515.0,58514.0,2.97752553]
[1617696060398,0.30055031,58516.0,58514.0,2.6765]
[1617696060998,0.10725655,58517.0,58514.0,2.6765]
[1617696061297,0.3000315,58515.0,58514.0,2.6765]
[1617696061797,0.65992112,58515.0,58514.0,2.6765]
[1617696065809,0.3000315,58515.0,58514.0,2.6765]
[1617696066318,0.65986801,58515.0,58514.0,2.6765]
[1617696070504,0.89138339,58515.0,58514.0,2.6765]
[1617696070905,0.89148831,58515.0,58514.0,2.6765]
[1617696071307,1.09982071,58515.0,58514.0,2.6765]
[1617696072008,1.20820071,58515.0,58514.0,2.6507]
[1617696072207,1.20820071,58515.0,58504.0,0.30100385]
[1617696072411,1.20820071,58515.0,58503.0,0.30101712]
[1617696072810,1.20820071,58515.0,58500.0,0.36122054]
[1617696072811,0.29986665,58505.0,58500.0,0.3010112]
[1617696073411,0.01008889,58501.0,58499.0,0.30102021]
[1617696073608,0.10725655,58500.0,58499.0,0.30102021]
[1617696073808,0.10725655,58500.0,58495.0,0.10725655]
[1617696073809,0.10725655,58500.0,58497.0,0.3010222]
[1617696074109,0.16823716,58500.0,58497.0,0.3010222]
[1617696074609,0.29933933,58498.0,58495.0,0.10725655]
[1617696075109,0.65841564,58498.0,58495.0,0.10725655]
[1617696075309,0.29930584,58496.0,58490.0,0.30105786]
[1617696075508,0.10725655,58491.0,58490.0,0.30105786]
[1617696076311,0.10725655,58491.0,58489.0,0.30106597]
[1617696076712,1.5,58490.0,58480.0,0.29990392]
[1617696076984,0.2,58489.0,58480.0,0.29990392]
[1617696077125,1.5,58488.0,58480.0,0.29990392]
[1617696077411,1.5,58488.0,58458.0,0.55982064]
[1617696077412,2.8577,58475.0,58463.0,0.29994877]
[1617696077611,1.80725655,58464.0,58445.0,0.30003419]
[1617696077844,2.95901655,58464.0,58442.0,0.26804103]
[1617696078294,2.95901655,58464.0,58423.0,1.56006382]
[1617696078295,3.74925416,58464.0,58433.0,0.360096]
[1617696078321,1.0,58446.0,58433.0,0.360096]
[1617696078652,1.0,58446.0,58414.0,0.56014933]
[1617696078653,1.50207213,58444.0,58420.0,0.44017972]
[1617696078713,0.2,58443.0,58420.0,0.44017972]
[1617696078920,1.7,58426.0,58402.0,0.50030081]
[1617696079314,0.0020652,58415.0,58384.0,0.50043916]
[1617696079514,0.04658907,58385.0,58384.0,0.50043916]
[1617696079720,0.04658907,58385.0,58373.0,0.10725655]
[1617696079913,0.04658907,58385.0,58381.0,1.0]
[1617696080413,0.00206012,58398.0,58376.0,2.7954]
[1617696080613,0.00206012,58398.0,58384.0,1.0]
[1617696080820,0.0020605,58400.0,58393.0,1.0]
[1617696081015,0.0020605,58400.0,58392.0,1.0]
[1617696081215,0.0020605,58400.0,58393.0,1.0]
[1617696081622,0.00206026,58402.0,58394.0,0.10725655]
[1617696082015,3.6363,58395.0,58394.0,0.10725655]
[1617696083315,3.6363,58395.0,58394.0,1.10725655]
[1617696083815,3.6363,58395.0,58394.0,0.10725655]
[1617696084216,3.6363,58395.0,58384.0,1.0]
[1617696084517,3.6363,58395.0,58385.0,1.0]
[1617696084719,3.6363,58395.0,58386.0,1.0]
[1617696085016,3.6383566,58395.0,58392.0,1.0]
[1617696085227,3.6363,58395.0,58392.0,1.0]
[1617696085617,3.63835723,58395.0,58394.0,0.10725655]
[1617696086516,3.6363,58395.0,58394.0,0.10725655]
[1617696087134,0.00205728,58395.0,58394.0,0.10725655]
[1617696087332,5.728e-05,58395.0,58394.0,1.10725655]
[1617696087516,0.0049992,58399.0,58394.0,1.10725655]
[1617696087716,0.00500732,58408.0,58394.0,0.10725655]
[1617696088144,0.00500732,58408.0,58407.0,2.8441]
[1617696088358,0.54992167,58433.0,58407.0,2.8441]
[1617696088616,0.56606612,58442.0,58407.0,8.8441]
[1617696088838,0.4715,58444.0,58432.0,1.11912]
[1617696089024,0.4715,58444.0,58432.0,0.11912]
[1617696089417,0.4715,58444.0,58434.0,1.0]
[1617696089718,0.4715,58444.0,58435.0,0.10725655]
[1617696090318,0.4715,58444.0,58430.0,1.0]
[1617696090520,0.4715,58444.0,58418.0,1.0]
[1617696090718,0.4715,58444.0,58419.0,1.0]
[1617696091019,3.3144,58440.0,58419.0,1.0]
[1617696091620,3.3144,58440.0,58428.0,0.10725655]
[1617696093323,3.3144,58440.0,58428.0,0.26147655]
[1617696093726,0.10725655,58430.0,58428.0,0.26147655]
[1617696095292,0.4715,58444.0,58428.0,0.26147655]
[1617696095466,0.4715,58444.0,58429.0,1.0]
[1617696095643,0.4715,58444.0,58443.0,0.10725655]
[1617696095848,0.4715,58444.0,58443.0,0.21390655]
[1617696096452,0.4715,58444.0,58443.0,0.16337873]
[1617696097325,0.4715,58444.0,58443.0,0.10665]
[1617696097527,0.4715,58444.0,58438.0,1.0]
[1617696097528,0.4715,58444.0,58437.0,1.0]
[1617696097725,0.10725655,58438.0,58437.0,1.0]
[1617696097926,0.10725655,58438.0,58436.0,0.10725655]
[1617696098125,0.10725655,58438.0,58437.0,1.0]
[1617696098326,0.4715,58444.0,58437.0,1.13292]
[1617696098826,0.4715,58444.0,58441.0,1.0]
[1617696099127,0.4715,58444.0,58442.0,1.0]
[1617696099427,0.4715,58444.0,58437.0,0.13292]
[1617696099628,0.57875655,58444.0,58443.0,0.10725655]
[1617696099829,0.57875655,58444.0,58443.0,0.10624606]
[1617696100830,4.10335655,58444.0,58432.0,1.0]
[1617696101030,4.10335655,58444.0,58423.0,1.0]
[1617696101632,0.10725655,58424.0,58423.0,1.0]
[1617696101933,0.10725655,58424.0,58421.0,0.10725655]
[1617696102270,0.10725655,58424.0,58355.0,0.43428959]
[1617696102432,3.3711,58409.0,58401.0,1.0]
[1617696102634,3.3711,58409.0,58396.0,1.0]
[1617696103132,3.3711,58409.0,58353.0,2.5351]
[1617696103133,3.3711,58409.0,58394.0,1.0]
[1617696103333,3.3711,58409.0,58395.0,1.0]
[1617696103833,3.3711,58409.0,58399.0,0.10725655]
[1617696105634,0.10725655,58400.0,58399.0,0.10725655]
[1617696106169,0.10725655,58400.0,58399.0,1.10725655]
[1617696106358,0.35524333,58420.0,58399.0,1.10725655]
[1617696106836,3.60749336,58421.0,58404.0,1.0]
[1617696107035,3.60749336,58421.0,58406.0,1.0]
[1617696107534,3.60749336,58421.0,58404.0,1.0]
[1617696107739,3.60749336,58421.0,58407.0,0.10725655]
[1617696108536,0.29607168,58418.0,58407.0,0.10725655]
[1617696109640,3.60749336,58421.0,58407.0,0.10725655]
[1617696109641,0.29558476,58417.0,58407.0,0.10725655]
[1617696109837,0.10725655,58408.0,58407.0,0.10725655]
[1617696110744,0.10725655,58408.0,58407.0,0.10624566]
[1617696112344,3.32605655,58408.0,58407.0,0.10624566]
[1617696112559,3.32605655,58408.0,58407.0,0.10374566]
[1617696112943,3.32605655,58408.0,58389.0,1.0]
[1617696113543,3.32605655,58408.0,58387.0,1.0]
[1617696113743,3.2188,58408.0,58394.0,0.10725655]
[1617696115143,0.0511,58407.0,58394.0,0.10725655]
[1617696115745,0.10725655,58395.0,58394.0,0.10725655]
[1617696115945,0.24113655,58395.0,58373.0,1.0]
[1617696116146,3.6014,58381.0,58373.0,1.0]
[1617696116345,3.72228,58381.0,58370.0,1.0]
[1617696116572,3.72228,58381.0,58345.0,0.0515]
[1617696116573,3.72228,58381.0,58371.0,1.0]
[1617696117318,0.12088,58381.0,58372.0,0.27]
[1617696117469,2.9177,58373.0,58372.0,0.27]
[1617696117747,3.02495655,58373.0,58372.0,0.0519]
[1617696118147,0.10725655,58373.0,58372.0,0.3119]
[1617696118348,0.10725655,58373.0,58372.0,1.3119]
[1617696118784,0.10725655,58373.0,58372.0,1.26]
[1617696119651,0.29509897,58392.0,58372.0,1.26]
[1617696119652,0.29509897,58392.0,58372.0,0.26]
[1617696119949,0.29442446,58393.0,58391.0,0.24361655]
[1617696120150,0.4797,58394.0,58391.0,0.24361655]
[1617696120456,0.4797,58394.0,58391.0,1.24361655]
[1617696120602,0.29467874,58402.0,58393.0,1.0]
[1617696120826,0.29460963,58406.0,58393.0,1.0]
[1617696121070,0.0512,58423.0,58391.0,0.24361655]
[1617696121071,0.29460721,58407.0,58391.0,0.13636]
[1617696121249,0.29460721,58407.0,58385.0,1.0]
[1617696121550,2.9932,58386.0,58383.0,1.0]
[1617696121750,3.10045655,58386.0,58385.0,0.10725655]
[1617696122251,3.10045655,58386.0,58346.0,0.35740538]
[1617696122452,3.10045655,58386.0,58369.0,1.0]
[1617696122653,3.3268,58370.0,58369.0,1.0]
[1617696122852,3.3268,58370.0,58366.0,1.0]
[1617696123053,3.3268,58370.0,58357.0,1.0]
[1617696123851,0.10725655,58356.0,58355.0,1.0]
[1617696124051,0.10725655,58356.0,58350.0,0.10725655]
[1617696124052,0.10725655,58356.0,58353.0,1.0]
[1617696124251,0.10725655,58356.0,58350.0,0.10725655]
[1617696124653,0.10725655,58356.0,58355.0,1.0]
[1617696126055,0.052,58377.0,58355.0,1.0]
[1617696126256,0.4708,58384.0,58355.0,0.15921]
[1617696126457,0.4708,58384.0,58369.0,1.0]
[1617696126656,0.4708,58384.0,58369.0,0.15535]
[1617696126856,0.4708,58384.0,58383.0,1.0]
[1617696127058,0.4708,58384.0,58383.0,1.16127]
[1617696127357,0.4708,58384.0,58383.0,0.16127]
[1617696127757,0.4708,58384.0,58383.0,1.26852655]
[1617696128602,0.10725655,58393.0,58383.0,1.26852655]
[1617696128813,0.29470912,58400.0,58383.0,1.26852655]
[1617696128994,0.29470912,58400.0,58391.0,1.0]
[1617696129461,0.29459308,58401.0,58389.0,1.0]
[1617696129662,0.29459308,58401.0,58390.0,1.0]
[1617696129861,0.46,58418.0,58383.0,0.26852655]
[1617696129862,0.29446593,58400.0,58388.0,1.0]
[1617696130261,0.29446593,58400.0,58381.0,1.0]
[1617696130624,0.29448762,58398.0,58380.0,1.0]
[1617696130795,0.29448762,58398.0,58342.0,0.35732821]
[1617696130797,0.2,58403.0,58375.0,1.0]
[1617696130799,0.79451142,58396.0,58375.0,1.0]
[1617696131236,0.29429201,58395.0,58370.0,1.0]
[1617696131461,0.29429201,58395.0,58369.0,1.0]
[1617696131661,0.5003,58396.0,58368.0,1.0]
[1617696131662,0.29425867,58391.0,58368.0,1.0]
[1617696131865,0.29425867,58391.0,58380.0,0.10725655]
[1617696132062,0.29425867,58391.0,58380.0,0.25879655]
[1617696132463,0.2942071,58393.0,58380.0,0.25879655]
[1617696132663,0.2942071,58393.0,58383.0,1.0]
[1617696132864,0.7945873,58396.0,58383.0,1.0]
[1617696133065,0.7945873,58396.0,58381.0,1.0]
[1617696133465,0.29411831,58394.0,58380.0,0.25879655]
[1617696133665,0.29411831,58394.0,58380.0,0.10725655]
[1617696133865,0.29411831,58394.0,58390.0,0.10725655]
[1617696134066,0.29411831,58394.0,58376.0,1.0]
[1617696134566,0.29411831,58394.0,58377.0,1.0]
[1617696134766,0.34497934,58393.0,58382.0,1.0]
[1617696134966,0.29357934,58393.0,58382.0,1.0]
[1617696135168,0.29373026,58395.0,58381.0,1.0]
[1617696135872,0.29373026,58395.0,58384.0,0.10725655]
[1617696136569,0.29373026,58395.0,58387.0,1.0]
[1617696137070,0.5003,58396.0,58384.0,0.23672655]
[1617696137071,0.35622974,58392.0,58384.0,0.23672655]
[1617696137473,0.35649416,58394.0,58391.0,1.0]
[1617696137680,0.35649416,58394.0,58390.0,1.0]
[1617696137971,0.5003,58396.0,58393.0,0.10725655]
[1617696137972,0.35667402,58395.0,58393.0,0.10725655]
[1617696138473,0.5003,58396.0,58393.0,0.10725655]
[1617696138972,0.65276286,58394.0,58393.0,0.10725655]
[1617696140072,0.76001941,58394.0,58393.0,0.10725655]
[1617696140372,0.76001941,58394.0,58393.0,1.10725655]
[1617696140573,0.65276286,58394.0,58393.0,1.10725655]
[1617696140775,0.8954811,58394.0,58393.0,1.10725655]
[1617696141175,0.29671938,58394.0,58393.0,0.10725655]
[1617696141400,0.29671938,58394.0,58393.0,3.71955655]
[1617696141575,0.29671938,58394.0,58393.0,3.98955655]
[1617696141778,0.29738922,58396.0,58393.0,2.98955655]
[1617696141975,0.06723646,58399.0,58393.0,2.98955655]
[1617696142176,0.29763801,58401.0,58393.0,8.98955655]
[1617696142375,0.29763801,58401.0,58398.0,6.0]
[1617696142576,0.43759999,58422.0,58398.0,6.15005]
[1617696142777,0.43759999,58422.0,58400.0,6.0]
[1617696143076,0.43759999,58422.0,58421.0,1.11706]
[1617696143280,0.43813601,58429.0,58421.0,1.11706]
[1617696143480,0.43813601,58429.0,58421.0,0.38706]
[1617696143678,1.442295,58459.0,58421.0,0.38706]
[1617696143679,0.43861402,58434.0,58428.0,8.6833]
[1617696143878,0.43861402,58434.0,58433.0,0.10725655]
[1617696144115,0.43876769,58435.0,58434.0,1.0]
[1617696144280,0.43876769,58435.0,58433.0,1.48776655]
[1617696144480,0.43887317,58437.0,58433.0,1.48776655]
[1617696144679,0.43887317,58437.0,58434.0,1.27]
[1617696144979,0.43887317,58437.0,58436.0,1.0]
[1617696145279,0.43887317,58437.0,58434.0,0.27]
[1617696145485,0.43887317,58437.0,58433.0,0.21776655]
[1617696145682,0.43887317,58437.0,58436.0,1.0]
[1617696146181,0.43887317,58437.0,58433.0,0.21776655]
[1617696146580,0.43887317,58437.0,58436.0,1.0]
[1617696147080,0.69800369,58460.0,58436.0,1.0]
[1617696147580,0.43874346,58439.0,58433.0,0.21776655]
[1617696147780,0.43874346,58439.0,58437.0,0.27]
[1617696147982,0.43877091,58438.0,58437.0,0.27]
[1617696148207,0.43877091,58438.0,58434.0,0.27]
[1617696148381,0.43855657,58444.0,58433.0,0.21776655]
[1617696148786,0.24256595,58451.0,58433.0,0.21776655]
[1617696148787,0.4385519,58445.0,58437.0,1.0]
[1617696148981,0.4385519,58445.0,58443.0,1.0]
[1617696149182,0.43859057,58446.0,58443.0,1.0]
[1617696149381,0.43859057,58446.0,58444.0,1.0]
[1617696149582,0.43853089,58447.0,58433.0,5.21776655]
[1617696149782,0.43853089,58447.0,58433.0,0.21776655]
[1617696149983,0.43853089,58447.0,58446.0,0.10725655]
[1617696150283,0.43853089,58447.0,58446.0,3.85894655]
[1617696150512,0.43848327,58453.0,58446.0,2.85894655]
[1617696150783,0.43848327,58453.0,58446.0,8.85894655]
[1617696151001,0.2424844,58467.0,58446.0,9.12894655]
[1617696151184,0.1138844,58467.0,58452.0,6.0]
[1617696151387,0.1138844,58467.0,58466.0,1.0]
[1617696151588,1.55334661,58516.0,58466.0,1.0]
[1617696151589,0.49906136,58476.0,58466.0,1.13796]
[1617696151939,0.49906136,58476.0,58475.0,0.10725655]
[1617696152086,0.10725655,58491.0,58475.0,0.10725655]
[1617696152087,0.10725655,58491.0,58475.0,2.75975655]
[1617696152088,0.4995586,58483.0,58475.0,2.75975655]
[1617696152288,0.4995586,58483.0,58475.0,4.02975655]
[1617696152613,0.49939717,58489.0,58482.0,1.0]
[1617696152820,0.49939717,58489.0,58482.0,1.13452]
[1617696153003,0.49939717,58489.0,58483.0,0.27]
[1617696153284,0.49939717,58489.0,58488.0,1.0]
[1617696153584,0.49939717,58489.0,58482.0,0.13452]
[1617696153585,0.49918773,58490.0,58482.0,0.13452]
[1617696153805,0.49918773,58490.0,58480.0,1.0]
[1617696154087,0.4989073,58488.0,58485.0,0.10725655]
[1617696154484,0.12498,58499.0,58485.0,0.10725655]
[1617696154485,0.49877388,58487.0,58485.0,0.10725655]
[1617696154684,0.49877388,58487.0,58485.0,1.10725655]
[1617696154935,0.49877388,58487.0,58486.0,1.0]
[1617696155185,0.49877388,58487.0,58486.0,1.14199]
[1617696155485,0.49844001,58490.0,58486.0,0.14199]
[1617696155885,0.49844001,58490.0,58486.0,1.14199]
[1617696156087,0.24239789,58487.0,58486.0,0.14199]
[1617696156588,0.49828447,58491.0,58486.0,1.41199]
[1617696156786,0.49678681,58498.0,58486.0,1.41199]
[1617696157088,0.49686476,58501.0,58490.0,1.0]
[1617696157286,0.49686476,58501.0,58497.0,1.0]
[1617696157587,0.9348,58504.0,58500.0,1.0]
[1617696157987,0.10725655,58503.0,58502.0,1.0]
[1617696158389,0.10725655,58503.0,58487.0,0.27]
[1617696158590,0.10725655,58503.0,58497.0,0.9989902]
[1617696159049,0.10725655,58503.0,58485.0,3.3617]
[1617696159392,0.2,58502.0,58485.0,3.3617]
[1617696159590,0.35586,58502.0,58485.0,3.3617]
[1617696159827,0.15586,58502.0,58486.0,0.27]
[1617696160038,0.15586,58502.0,58485.0,3.3617]
[1617696160039,0.10725655,58487.0,58485.0,3.3617]
[1617696160219,0.10725655,58487.0,58482.0,0.10725655]
[1617696160492,0.26331655,58487.0,58482.0,0.10725655]
[1617696161591,0.10725655,58487.0,58482.0,0.10725655]
[1617696163019,0.10725655,58487.0,58486.0,1.0]
[1617696163223,0.10725655,58487.0,58486.0,1.14033]
[1617696164596,0.9348,58504.0,58486.0,1.14033]
[1617696165196,0.13234,58503.0,58490.0,1.0]
[1617696165396,0.13234,58503.0,58460.0,3.1681]
[1617696165654,1.0,58502.0,58473.0,1.0]
[1617696165998,0.13234,58503.0,58474.0,1.0]
[1617696166198,0.26498655,58475.0,58474.0,0.37725655]
[1617696166488,0.26498655,58475.0,58474.0,0.10725655]
[1617696166799,0.26498655,58475.0,58474.0,0.37725655]
[1617696167001,0.26498655,58475.0,58460.0,1.0]
[1617696167411,0.26498655,58475.0,58455.0,1.0]
[1617696167635,0.26498655,58475.0,58454.0,1.0]
[1617696167793,0.26498655,58475.0,58452.0,1.0]
[1617696167899,0.26498655,58475.0,58447.0,2.4908]
[1617696167900,0.26498655,58475.0,58451.0,1.0]
[1617696168099,0.15773,58475.0,58455.0,0.27]
[1617696168320,1.65773,58475.0,58455.0,0.27]
[1617696168555,1.0,58465.0,58435.0,1.0]
[1617696168720,1.9587,58464.0,58435.0,1.0]
[1617696168904,1.0,58461.0,58432.0,1.0]
[1617696169099,1.14858,58461.0,58432.0,1.0]
[1617696169300,1.14858,58461.0,58436.0,0.27]
[1617696169503,0.14858,58461.0,58434.0,1.0]
[1617696169699,0.14858,58461.0,58438.0,1.0]
[1617696170100,0.10725655,58439.0,58436.0,1.0]
[1617696170400,0.2,58460.0,58439.0,0.27]
[1617696170800,0.6705,58460.0,58437.0,1.0]
[1617696170999,0.6705,58460.0,58438.0,0.27]
[1617696171200,0.6705,58460.0,58440.0,0.27]
[1617696171501,0.6705,58460.0,58435.0,0.10725655]
[1617696171722,0.4705,58460.0,58441.0,0.27]
[1617696172101,0.4705,58460.0,58441.0,1.0]
[1617696172102,0.10725655,58442.0,58441.0,1.0]
[1617696172300,0.10725655,58442.0,58439.0,1.0]
[1617696172504,0.10725655,58442.0,58436.0,1.0]
[1617696172705,0.10725655,58442.0,58439.0,1.0]
[1617696173002,0.10725655,58442.0,58437.0,0.27]
[1617696173202,0.10725655,58442.0,58437.0,1.27]
[1617696173405,0.10725655,58442.0,58441.0,1.0]
[1617696173603,0.10725655,58442.0,58438.0,0.27]
[1617696174004,0.10725655,58442.0,58441.0,1.0]
[1617696174205,0.10725655,58442.0,58425.0,0.14184]
[1617696174524,0.10725655,58442.0,58441.0,1.0]
[1617696176007,0.10725655,58442.0,58441.0,1.16001]
[1617696176210,0.10725655,58442.0,58441.0,1.26726655]
[1617696177253,0.10725655,58442.0,58441.0,1.0]
[1617696177664,0.10725655,58442.0,58420.0,2.5579]
[1617696177808,0.10725655,58442.0,58435.0,1.0]
[1617696178117,0.10725655,58442.0,58441.0,0.10725655]
[1617696178308,0.10725655,58442.0,58433.0,1.0]
[1617696178510,0.10725655,58442.0,58431.0,1.0]
[1617696178754,0.2,58441.0,58420.0,1.0]
[1617696179009,0.2,58441.0,58414.0,1.0]
[1617696179433,0.2,58441.0,58415.0,0.27]
[1617696179709,0.4639,58440.0,58415.0,0.27]
[1617696179911,1.7,58439.0,58413.0,1.0]
[1617696180109,0.10725655,58414.0,58397.0,1.0]
[1617696180326,0.21375655,58414.0,58397.0,1.0]
[1617696180525,0.21375655,58414.0,58394.0,1.0]
[1617696180811,0.21375655,58414.0,58389.0,1.0]
[1617696181010,0.21375655,58414.0,58383.0,0.29774893]
[1617696181011,0.21375655,58414.0,58387.0,1.0]
[1617696181411,1.0,58408.0,58379.0,1.0]
[1617696182112,1.0,58408.0,58380.0,0.27]
[1617696182317,1.0,58409.0,58387.0,0.10725655]
[1617696182713,0.4732,58413.0,58387.0,0.10725655]
[1617696182912,0.2,58412.0,58387.0,0.10725655]
[1617696183112,0.4732,58413.0,58387.0,0.10725655]
[1617696183312,1.4732,58413.0,58387.0,0.10725655]
[1617696183613,1.9732,58413.0,58387.0,0.10725655]
[1617696183912,1.0,58407.0,58387.0,0.10725655]
[1617696184114,0.11923,58407.0,58381.0,1.0]
[1617696184361,0.11923,58407.0,58401.0,0.10725655]
[1617696185116,0.4732,58413.0,58401.0,0.10725655]
[1617696185313,0.4732,58413.0,58392.0,1.0]
[1617696185613,0.4732,58413.0,58403.0,1.0]
[1617696185938,0.4732,58413.0,58400.0,1.0]
[1617696186128,0.4732,58413.0,58399.0,1.0]
[1617696186321,0.4732,58413.0,58406.0,0.10725655]
[1617696186796,0.4732,58413.0,58406.0,0.26661655]
[1617696187006,0.4732,58413.0,58410.0,1.0]